fUSD/lending_fUSD_20260305
["ID","MTS","AMOUNT","RATE_DAILY","PERIOD"]
[407695818,1772686240998,-1000.0,0.000398,2]
[407695819,1772686241008,-150.99,0.000398,30]
[407695820,1772686241017,-5874.57,0.000398,2]
[407695821,1772686241027,-1299.72,0.000398,2]
[407695822,1772686241038,-4135.5197,0.000398,2]
[407695823,1772686241047,-19810.8673,0.000398,2]
[407695824,1772686241057,-177.00764617,0.00039885,2]
[407695825,1772686241071,-170.092,0.00039899,56]
[407695826,1772686241080,-3380.613,0.00039899,56]
[407695827,1772686241089,-150.00047097,0.00039899,120]
[407695828,1772686241099,-306.80555843,0.00039899,31]
[407695829,1772686241110,-345.24076417,0.00039899,31]
[407695830,1772686241120,-193.15729689,0.00039899,31]
[407695831,1772686241129,-500.0,0.00039899,31]
[407695832,1772686241141,-500.0,0.00039899,31]
[407695833,1772686241151,-500.0,0.00039899,31]
[407695834,1772686241160,-171.57588148,0.00039899,31]
[407695835,1772686241170,-500.0,0.00039899,31]
[407695836,1772686241179,-500.0,0.00039899,31]
[407695837,1772686241188,-500.0,0.00039899,31]
[407695838,1772686241198,-500.0,0.00039899,31]
[407695839,1772686241207,-19794.10360563,0.000399,120]
[407695846,1772686245333,-699.83724262,0.000399,120]
[407695847,1772686245704,-91158.21860707,0.000399,120]
[407695853,1772686246074,-736.69315927,0.000399,120]
[407695854,1772686246086,-75006.53189069,0.000399,120]
[407695855,1772686246098,-205928.61549472,0.000399,120]
[407695856,1772686246107,-4085.13926826,0.00039985,15]
[407695857,1772686246116,-829.69,0.00040085,120]
[407695858,1772686246126,-1500.0,0.00040189,120]
[407695859,1772686246136,-229.48,0.00040243,2]
[407695860,1772686246145,-4085.13926817,0.00040718,15]
[407695861,1772686246154,-172.70211477,0.00041156,2]
[407695862,1772686246163,-168.0,0.00041162,2]
[407695863,1772686246172,-160.0,0.00041232,2]
[407695864,1772686246181,-4085.13926817,0.00041451,15]
[407695865,1772686246190,-1000.0,0.000416,2]
[407695866,1772686246199,-255.0,0.00041653,2]
[407695867,1772686246209,-168.0,0.00041986,2]
[407695868,1772686246219,-5036.74071059,0.00042007,54]
[407695869,1772686246228,-1048.50100127,0.00042008,2]
[407695870,1772686246236,-306.61635286,0.00042008,2]
[407695871,1772686246246,-856.13486002,0.00042008,2]
[407695872,1772686246255,-307.87522791,0.00042008,2]
[407695873,1772686246264,-459.37693596,0.00042008,2]
[407695874,1772686246272,-372.1160746,0.00042008,2]
[407695875,1772686246282,-300.28645221,0.00042008,2]
[407695876,1772686246290,-519.58908537,0.00042008,2]
[407695877,1772686246299,-306.82968309,0.00042008,2]
[407695878,1772686246308,-300.0,0.00042008,2]
[407695879,1772686246318,-1084.19175733,0.00042008,2]
[407695880,1772686246327,-1048.50100127,0.00042008,2]
[407695881,1772686246336,-306.61635286,0.00042008,2]
[407695882,1772686246346,-856.13486002,0.00042008,2]
[407695883,1772686246356,-307.87522791,0.00042008,2]
[407695885,1772686246365,-459.37693596,0.00042008,2]
[407695887,1772686246374,-372.1160746,0.00042008,2]
[407695889,1772686246384,-300.28645221,0.00042008,2]
[407695891,1772686246393,-519.58908537,0.00042008,2]
[407695893,1772686246403,-306.82968309,0.00042008,2]
[407695895,1772686246412,-300.0,0.00042008,2]
[407695897,1772686246421,-1084.19175733,0.00042008,2]
[407695899,1772686246430,-4085.13926817,0.00042183,15]
[407695901,1772686246439,-229.48,0.00042256,2]
[407695903,1772686246448,-15500.0,0.0004246,60]
[407695905,1772686246457,-560.0,0.00042461,5]
[407695907,1772686246466,-168.0,0.00042622,2]
[407695909,1772686246475,-152.0,0.00042747,3]
[407695911,1772686246484,-4085.13926817,0.00042916,15]
[407695913,1772686246493,-1000.0,0.00043068,2]
[407695915,1772686246502,-420.0,0.00043068,120]
[407695917,1772686246511,-200.0,0.00043305,2]
[407695918,1772686246521,-5000.0,0.00043307,120]
[407695919,1772686246530,-4085.13926817,0.00043649,15]
[407695920,1772686246540,-500.0,0.00043738,30]
[407695921,1772686246549,-1590.0,0.00043836,120]
[407695922,1772686246558,-5000.0,0.00043836,120]
[407695923,1772686246568,-15500.0,0.0004386,60]
[407695924,1772686246577,-229.48,0.00044268,2]
[407695925,1772686246586,-4085.13926817,0.00044382,15]
[407695926,1772686246596,-500.0,0.000444,120]
[407695927,1772686246605,-350.0,0.00044682,6]
[407695928,1772686246615,-1041.0,0.00044859,2]
[407695929,1772686246624,-1753.106,0.00044859,2]
[407695930,1772686246633,-1341.0,0.00044859,2]
[407695931,1772686246642,-619.0,0.00044859,2]
[407695932,1772686246651,-216.0,0.00044859,2]
[407695933,1772686246660,-270.0,0.00044859,2]
[407695934,1772686246670,-3769.481,0.00044859,2]
[407695935,1772686246679,-171.867,0.00044859,2]
[407695936,1772686246688,-150.68,0.00044859,2]
[407695937,1772686246697,-150.648,0.00044859,2]
[407695938,1772686246706,-2455.0,0.00044859,2]
[407695939,1772686246715,-150.0,0.00044859,2]
[407695940,1772686246724,-182.10230381,0.00045,120]
[407695941,1772686246733,-3010.12181718,0.00045,120]
[407695942,1772686246742,-192.25,0.00045,120]
[407695943,1772686246750,-829.69,0.00045096,120]
[407695944,1772686246760,-4085.13926817,0.00045114,15]
[407695945,1772686246769,-15500.0,0.0004526,60]
[407695946,1772686246778,-464.46792045,0.00045276,2]
[407695947,1772686246787,-783.0,0.00045301,5]
[407695948,1772686246796,-173.473432,0.00045486,60]
[407695949,1772686246805,-350.0,0.00045652,6]
[407695950,1772686246815,-4085.13926817,0.00045847,15]
[407695951,1772686246824,-245.0,0.00045874,2]
[407695952,1772686246833,-801.0,0.000459,30]
[407695953,1772686246842,-304.0,0.000459,30]
[407695954,1772686246851,-500.0,0.00045999,120]
[407695955,1772686246860,-500.0,0.00046,120]
[407695956,1772686246869,-229.48,0.0004628,2]
[407695957,1772686246878,-248.27500956,0.00046347,2]
[407695958,1772686246888,-3014.50542034,0.000464,120]
[407695959,1772686381242,500.476953,0.00029897,2]
[407695960,1772686391533,-400.0,0.00037999,2]
[407695961,1772686391604,-6311.45796464,0.00038,7]
[407695962,1772686397191,-10000.01,0.00038,7]
[407695963,1772686429701,2000.0,0.00029798,2]
[407695964,1772686430273,609.73051546,0.00029698,2]
[407695965,1772686517821,500.0,0.00014373,2]
[407695966,1772686517891,504.97753483,0.00014921,2]
[407695967,1772686583676,6385.30194971,0.00029897,3]
[407695968,1772686583697,10000.01,0.00029897,3]
[407695969,1772686583719,3644.68805029,0.00029897,3]
[407695970,1772686630098,500.30777449,0.00016973,2]
[407695971,1772686632886,500.82420992,0.00016973,2]
[407695972,1772686633028,500.65533715,0.00016973,2]
[407695973,1772686634104,4853.53462815,0.000298,7]
[407695974,1772686634124,10000.01,0.000298,7]
[407695975,1772686634145,5146.45537185,0.000298,7]
[407695976,1772686634198,286.53567068,0.00016973,2]
[407695977,1772686634288,500.82219971,0.00016973,2]
[407695978,1772686634607,516.15323722,0.00016973,2]
[407695979,1772686635794,500.70738406,0.00016973,2]
[407695980,1772686636161,161.97671235,0.00016973,2]
[407695981,1772686636292,571.35562547,0.00016973,2]
[407695982,1772686637711,500.66159153,0.00016973,2]
[407695983,1772686638049,168.83055657,0.00016973,2]
[407695984,1772686638235,500.17118036,0.00016973,2]
[407695985,1772686638386,500.84612641,0.00016973,2]
[407695986,1772686638473,501.34937779,0.00016973,2]
[407695987,1772686638861,144.144966,0.00016973,2]
[407695988,1772686638882,369.04528676,0.00016973,2]
[407695989,1772686639126,163.59748029,0.00016973,2]
[407695990,1772686639293,163.05497047,0.00016973,2]
[407695991,1772686639423,209.89151104,0.00016973,2]
[407695992,1772686674155,502.00003,0.00026898,2]
[407695993,1772686685976,165.98720503,0.00016973,2]
[407695994,1772686686912,162.22889393,0.00016973,2]
[407695995,1772686687121,600.66664765,0.00016973,2]
[407695996,1772686687161,501.18552408,0.00016973,2]
[407695997,1772686687815,167.87481142,0.00016973,2]
[407695998,1772686688014,6994.47763933,7.945e-05,2]
[407695999,1772686688037,10000.01,7.945e-05,2]
[407696000,1772686688059,10000.01,7.945e-05,2]
[407696001,1772686688080,3005.53236067,7.945e-05,2]
[407696002,1772686688913,503.13118984,0.00016973,2]
[407696003,1772686689898,500.83142573,0.00016973,2]
[407696004,1772686689999,501.08912633,0.00016973,2]
[407696005,1772686690025,500.6635566,0.00016973,2]
[407696006,1772686691215,500.88173687,0.00016973,2]
[407696007,1772686699569,151.0,0.00014634,2]
[407696008,1772686699782,151.0,0.00014634,2]
[407696009,1772686703762,500.0,0.00026898,2]
[407696010,1772686715979,151.0,0.00014634,2]
[407696011,1772686728092,200.0,0.00014174,2]
[407696012,1772686728356,200.0,0.00014174,2]
[407696013,1772686728783,200.0,0.00014174,2]
[407696014,1772686728956,200.0,0.00014174,2]
[407696015,1772686729289,200.0,0.00014174,7]
[407696016,1772686742737,500.84330545,0.00016973,2]
[407696017,1772686742862,502.37498593,0.00016973,2]
[407696018,1772686743086,500.96095128,0.00016973,2]
[407696019,1772686746147,502.68587184,0.00014921,2]
[407696020,1772686746197,500.0,0.00014373,2]
[407696021,1772686747531,5039.26314863,7.945e-05,2]
[407696022,1772686747555,5810.08719137,7.945e-05,2]
[407696023,1772686750256,4189.92280863,0.0002,2]
[407696024,1772686750281,10000.01,0.0002,2]
[407696025,1772686750306,10000.01,0.0002,2]
[407696026,1772686750330,10000.01,0.0002,2]
[407696027,1772686750353,10000.01,0.0002,2]
[407696028,1772686750375,10000.01,0.0002,2]
[407696029,1772686750404,10000.01,0.0002,2]
[407696030,1772686750428,10000.01,0.0002,2]
[407696031,1772686750453,10000.01,0.0002,2]
[407696032,1772686750478,1149.58602381,0.0002,2]
[407696033,1772686750501,1149.58602381,0.0002,2]
[407696034,1772686750523,1149.58602381,0.0002,2]
[407696035,1772686750544,1149.58602381,0.0002,2]
[407696036,1772686750568,1149.58602381,0.0002,2]
[407696037,1772686750591,1149.58602381,0.0002,2]
[407696038,1772686750613,1149.58602381,0.0002,2]
[407696039,1772686750638,1149.58602381,0.0002,2]
[407696040,1772686750661,1149.58602381,0.0002,2]
[407696041,1772686750682,1149.58602381,0.0002,2]
[407696042,1772686750724,504.59959812,0.00014373,2]
[407696043,1772686794491,1868.18558613,9.95e-05,2]
[407696044,1772686812268,500.0,0.00014373,2]
[407696045,1772686812297,502.7183305,0.00014921,2]
[407696046,1772686845763,-1050.0,0.00016999,2]
[407696047,1772686845794,-300.0,0.00016999,2]
[407696048,1772686845854,-2288.76234083,0.00017,2]
[407696049,1772686851436,-10000.01,0.00017,2]
[407696050,1772686901477,546.64,0.000127,2]
[407696051,1772686904575,-2855.724516,0.00016119,2]
[407696052,1772686904622,-4288.560968,0.000162,5]
[407696053,1772686904662,-711.43965636,0.000162,5]
[407696054,1772686904690,-500.6048629,0.00016973,2]
[407696055,1772686904718,-500.66004421,0.00016973,2]
[407696056,1772686904745,-500.8406382,0.00016973,2]
[407696057,1772686904773,-516.64695093,0.00016973,2]
[407696058,1772686904800,-500.68694088,0.00016973,2]
[407696059,1772686904828,-158.67517064,0.00016973,2]
[407696060,1772686904932,-4230.12859048,0.00017,2]
[407696061,1772686905007,-3220.90147176,0.00017,2]
[407696062,1772686905036,-1539.75281904,0.00017,2]
[407696063,1772686905050,-10000.01,0.00017,2]
[407696064,1772686905074,-10000.01,0.00017,2]
[407696065,1772686905202,-10000.01,0.00017,2]
[407696066,1772686905348,-10000.01,0.00017,2]
[407696067,1772686905472,-10000.01,0.00017,2]
[407696068,1772686905578,-10000.01,0.00017,2]
[407696069,1772686907051,-10000.01,0.00017,2]
[407696070,1772686907166,-10000.01,0.00017,2]
[407696071,1772686923037,500.76272962,0.00016973,2]
[407696072,1772686923306,501.07937522,0.00016973,2]
[407696073,1772686925691,160.23398328,0.00016973,2]
[407696074,1772686925774,161.77269484,0.00016973,2]
[407696075,1772686948494,269.4492394,0.000107,2]
[407696077,1772686982989,277.91000131,0.00016973,2]
[407696078,1772686983287,500.0,0.00016973,2]
[407696079,1772686986592,500.6040409,0.00016973,2]
[407696080,1772686990542,-688.1542326,0.00017,2]
[407696081,1772686990577,-8623.7015348,0.00017,2]
[407696082,1772686990844,-250.0,0.00017449,2]
[407696083,1772686990875,-175.65490252,0.00017898,2]
[407696084,1772686990906,-250.0,0.000187,2]
[407696085,1772686991135,-250.0,0.000187,2]
[407696086,1772686991167,-300.0,0.00019998,2]
[407696087,1772686991259,-7548.70019496,0.0002,2]
[407696088,1772687015206,6994.50727138,0.00017,2]
[407696089,1772687033724,501.0,0.000157,2]
[407696090,1772687043007,501.0364462,0.00016973,2]
[407696091,1772687043032,537.76977486,0.00016973,2]
[407696092,1772687043079,501.82148523,0.00016973,2]
[407696093,1772687043285,502.06109406,0.00016973,2]
[407696095,1772687090505,192.13,0.0001679,2]
[407696096,1772687102844,164.26698433,0.00016973,2]
[407696097,1772687102872,501.29533568,0.00016973,2]
[407696098,1772687126070,-192.13,0.0001706,2]
[407696099,1772687126104,-1200.0,0.00019999,2]
[407696100,1772687130397,-6819.87160826,0.0002,2]
[407696101,1772687133459,-10000.01,0.0002,2]
[407696102,1772687138810,-2000.0,0.0002,2]
[407696103,1772687138897,-166.66,0.0002,2]
[407696104,1772687138985,-456.66373361,0.0002,2]
[407696105,1772687139083,-479.21138902,0.0002,2]
[407696106,1772687163143,500.45511478,0.00016973,2]
[407696107,1772687163677,501.03496978,0.00016973,2]
[407696108,1772687164396,500.8900569,0.00016973,2]
[407696109,1772687222995,501.37970938,0.00016973,2]
[407696110,1772687223092,501.06673478,0.00014373,2]
[407696111,1772687241122,500.0,0.00012,2]
[407696112,1772687241626,843.44401742,0.00012,2]
[407696113,1772687244509,972.09263389,0.00012,2]
[407696114,1772687295529,-300.0,0.00019999,2]
[407696115,1772687295560,-300.0,0.00019999,2]
[407696116,1772687341230,300.0,0.00019999,2]
[407696117,1772687342395,300.0,0.00019999,2]
[407696118,1772687342983,500.63657563,0.00016973,2]
[407696119,1772687343055,500.47518083,0.00016973,2]
[407696120,1772687343370,500.70639793,0.00016973,2]
[407696121,1772687401384,300.0,0.00019999,2]
[407696122,1772687401474,1200.0,0.00019999,2]
[407696123,1772687402962,507.13431696,0.00016973,2]
[407696124,1772687403532,500.61713446,0.00016973,2]
[407696127,1772687432170,-58047.52063074,0.0002,2]
[407696128,1772687432182,-500.0,0.0002,2]
[407696129,1772687432191,-500.0,0.0002,2]
[407696130,1772687432201,-307.64606741,0.0002,2]
[407696132,1772687432212,-250.0,0.00020889,2]
[407696134,1772687432221,-5000.0,0.00020889,2]
[407696135,1772687432230,-250.0,0.00021731,2]
[407696137,1772687432240,-420.0,0.00021777,2]
[407696139,1772687432249,-420.0,0.00021777,2]
[407696140,1772687432260,-1151.0,0.00021881,2]
[407696141,1772687432270,-5000.0,0.00021999,2]
[407696142,1772687432280,-250.0,0.00022,2]
[407696143,1772687432289,-5000.0,0.00022,2]
[407696144,1772687432301,-160.0,0.00023,2]
[407696145,1772687432310,-587.0,0.00023712,2]
[407696146,1772687432320,-168.0,0.00023712,2]
[407696147,1772687432329,-823.0,0.0002582,2]
[407696148,1772687432338,-200.0,0.00026898,2]
[407696149,1772687432347,-200.0,0.00027167,2]
[407696150,1772687432358,-200.0,0.00027439,2]
[407696151,1772687432367,-462.0,0.00028115,2]
[407696152,1772687432376,-709.0,0.00028257,2]
[407696153,1772687432385,-1264.0,0.00028348,2]
[407696154,1772687432395,-4266.64266074,0.000298,7]
[407696155,1772687432405,-1310.6202391,0.000298,2]
[407696156,1772687432415,-151.00675306,0.00035,30]
[407696157,1772687432424,-177.81788554,0.00035156,30]
[407696158,1772687432439,-138.18211446,0.00035156,30]
[407696159,1772687432449,-496.0,0.00035156,30]
[407696161,1772687432459,-200.0,0.000372,120]
[407696162,1772687432468,-185.43674207,0.000372,120]
[407696163,1772687432477,-185.43674207,0.000372,120]
[407696164,1772687432487,-150.0,0.00037326,2]
[407696165,1772687432496,-4737.0,0.000377,5]
[407696166,1772687432505,-186.76,0.0003795,2]
[407696167,1772687432516,-7710.92,0.0003797,10]
[407696168,1772687432525,-791.11378304,0.0003798,10]
[407696169,1772687432537,-8461.98621696,0.0003798,10]
[407696170,1772687432546,-13324.47,0.0003799,10]
[407696171,1772687432555,-11103.72,0.0003799,10]
[407696172,1772687432564,-33688.53203536,0.00038,7]
[407696173,1772687432574,-841.0,0.00038,2]
[407696174,1772687432583,-408.51392688,0.00038177,2]
[407696175,1772687432592,-3295.611,0.00038277,51]
[407696176,1772687432602,-164.864,0.00038277,51]
[407696177,1772687432612,-1121.86699554,0.00039,120]
[407696178,1772687432622,-408.51392681,0.00039111,2]
[407696179,1772687432631,-347.450396,0.00039276,60]
[407696180,1772687432640,-381.64155,0.00039395,60]
[407696181,1772687432649,-1000.0,0.0003969,120]
[407696182,1772687432659,-1740.0,0.000397,2]
[407696183,1772687432668,-166.66,0.00039881,30]
[407696184,1772687432677,-500.0,0.00039899,120]
[407696185,1772687432687,-630.81055911,0.00039899,120]
[407696186,1772687432697,-408.51392681,0.00040044,15]
[407696187,1772687432706,-1838.899724,0.00040396,60]
[407696188,1772687432716,-168.0,0.00040459,2]
[407696189,1772687432725,-160.0,0.00040505,2]
[407696190,1772687432735,-166.66,0.00040721,30]
[407696191,1772687432744,-408.51392681,0.00040978,15]
[407696192,1772687432753,-1041.0,0.00041326,2]
[407696193,1772687432763,-168.0,0.00041343,2]
[407696194,1772687432772,-1104.91,0.00041469,120]
[407696195,1772687432781,-1150.31447969,0.000415,7]
[407696196,1772687432794,-609.8984744,0.000415,7]
[407696197,1772687432813,-750.0,0.000415,7]
[407696198,1772687432824,-17489.78704591,0.000415,7]
[407696199,1772687432834,-166.66,0.0004156,30]
[407696200,1772687432844,-408.51392681,0.00041911,15]
[407696201,1772687432853,-137.60065804,0.0004198,2]
[407696202,1772687432868,-26.06934196,0.0004198,2]
[407696203,1772687432879,-647.99747297,0.0004198,2]
[407696206,1772687438289,-401.616215,0.000377,5]
[407696207,1772687438345,-326.80371122,0.000377,5]
[407696208,1772687438403,-66.58007378,0.000377,5]
[407696209,1772687438413,-368.94125633,0.0004198,2]
[407696210,1772687438425,-1482.6712707,0.0004198,2]
[407696211,1772687438436,-43.8299176,0.0004198,30]
[407696212,1772687438448,-161.26746067,0.0004198,30]
[407696213,1772687438457,-205.09737827,0.0004198,30]
[407696214,1772687438466,-634.81877774,0.0004198,60]
[407696215,1772687438479,-312.18122226,0.0004198,60]
[407696216,1772687438488,-150.0,0.00042,10]
[407696217,1772687438498,-521.49056992,0.00042006,2]
[407696218,1772687438510,-527.01043135,0.00042006,2]
[407696219,1772687438519,-306.61635286,0.00042006,2]
[407696220,1772687438528,-856.13486002,0.00042006,2]
[407696221,1772687438537,-307.87522791,0.00042006,2]
[407696222,1772687438546,-459.37693596,0.00042006,2]
[407696223,1772687438555,-372.1160746,0.00042006,2]
[407696224,1772687438564,-300.28645221,0.00042006,2]
[407696225,1772687438573,-519.58908537,0.00042006,2]
[407696226,1772687438582,-306.82968309,0.00042006,2]
[407696227,1772687438591,-300.0,0.00042006,2]
[407696228,1772687438600,-1084.19175733,0.00042006,2]
[407696229,1772687438610,-306.61635286,0.00042006,2]
[407696230,1772687438619,-1048.50100127,0.00042006,2]
[407696232,1772687438628,-856.13486002,0.00042006,2]
[407696233,1772687438637,-307.87522791,0.00042006,2]
[407696234,1772687438646,-459.37693596,0.00042006,2]
[407696235,1772687438655,-378.0028771,0.00042006,2]
[407696236,1772687438664,-372.1160746,0.00042006,2]
[407696237,1772687438673,-300.28645221,0.00042006,2]
[407696238,1772687438682,-519.58908537,0.00042006,2]
[407696239,1772687438691,-306.82968309,0.00042006,2]
[407696240,1772687438700,-300.0,0.00042006,2]
[407696241,1772687438710,-1084.19175733,0.00042006,2]
[407696242,1772687438719,-397.16,0.00042043,120]
[407696243,1772687438729,-8734.84,0.00042316,2]
[407696244,1772687438738,-2500.0,0.0004236,2]
[407696245,1772687438748,-166.66,0.000424,30]
[407696246,1772687438757,-240.62,0.00042429,120]
[407696247,1772687438766,-9067.57837115,0.0004246,60]
[407696249,1772687440824,-205.09737827,0.0004246,30]
[407696250,1772687440834,-500.04183587,0.0004246,60]
[407696267,1772687445151,-2700.46,0.0004198,2]
[407696268,1772687445163,-385.37979298,0.0004246,60]
[407696269,1772687445173,-20000.0,0.000425,30]
[407696270,1772687445183,-168.0,0.00042679,2]
[407696271,1772687445193,-168.0,0.00042715,2]
[407696272,1772687445204,-168.0,0.00042716,2]
[407696273,1772687445216,-265.27169288,0.00042824,30]
[407696274,1772687445226,-408.51392681,0.00042845,15]
[407696275,1772687445234,-168.0,0.00042889,2]
[407696276,1772687445242,-168.0,0.00042953,2]
[407696277,1772687445251,-6425.77,0.0004299,10]
[407696278,1772687445259,-44019.64632665,0.00043,30]
[407696295,1772687446148,-14545.795,0.00043,30]
[407696296,1772687446160,-4279.13838,0.00043,30]
[407696297,1772687446221,-17155.42029335,0.00043,30]
[407696298,1772687446230,-700.464321,0.00043,90]
[407696299,1772687446242,-150.0,0.00043,10]
[407696300,1772687446254,-166.66,0.00043239,30]
[407696301,1772687446265,-166.98,0.00043305,2]
[407696302,1772687446275,-168.0,0.00043516,2]
[407696303,1772687446287,-1519.3290757,0.00043523,2]
[407696304,1772687446297,-200.0,0.00043585,2]
[407696305,1772687446307,-693.3919763,0.00043585,2]
[407696306,1772687446317,-157.65788074,0.00043585,2]
[407696307,1772687446328,-12359.89,0.00043611,2]
[407696308,1772687446338,-719.04747942,0.0004364,2]
[407696309,1772687446347,-745.65223616,0.00043695,2]
[407696310,1772687446358,-1292.93475878,0.00043736,28]
[407696311,1772687446368,-773.2413689,0.0004375,2]
[407696312,1772687446378,-408.51392681,0.00043778,15]
[407696313,1772687446387,-801.85129955,0.00043805,2]
[407696314,1772687446396,-1030.44756817,0.00043836,120]
[407696315,1772687446406,-831.51979763,0.0004386,2]
[407696316,1772687446417,-9953.0,0.0004386,60]
[407696317,1772687446426,-862.28603014,0.00043915,2]
[407696318,1772687446438,-894.19061326,0.0004397,2]
[407696319,1772687446449,-927.27566595,0.00044025,2]
[407696320,1772687446460,-166.66,0.00044079,30]
[407696322,1772687446469,-961.58486559,0.0004408,2]
[407696324,1772687446479,-997.16350561,0.00044135,2]
[407696325,1772687446489,-408.51392681,0.00044712,15]
[407696327,1772687446499,-1292.93475871,0.00044759,28]
[407696330,1772687446510,-397.16,0.00044979,120]
[407696332,1772687446521,-20000.0,0.00045,30]
[407696333,1772687446532,-10000.0,0.00045,60]
[407696335,1772687446541,-500.0,0.00045259,120]
[407696337,1772687446551,-9953.0,0.0004526,60]
[407696339,1772687446560,-309.6452803,0.00045276,2]
[407696340,1772687446569,-200.0,0.000453,2]
[407696341,1772687446578,-3240.0,0.00045493,120]
[407696342,1772687446588,-2152.0452,0.00045615,2]
[407696343,1772687446597,-700.0,0.00045631,3]
[407696344,1772687446606,-408.51392681,0.00045645,15]
[407696345,1772687446615,-501.98692667,0.00045678,120]
[407696346,1772687446625,-2944.3934,0.00045749,2]
[407696347,1772687446634,-1434.6967,0.00045749,2]
[407696348,1772687446644,-1292.93475871,0.00045783,28]
[407696349,1772687446655,-4839.0,0.00045853,7]
[407696350,1772687446665,-240.62,0.00045854,120]
[407696351,1772687446673,-168.71404255,0.00045872,111]
[407696352,1772687446682,-500.0,0.00045913,120]
[407696353,1772687446692,-500.0,0.00045913,120]
[407696354,1772687446701,-504.21062028,0.00045913,120]
[407696355,1772687446711,-2944.3934,0.00045913,2]
[407696356,1772687446721,-500.0,0.00045913,120]
[407696357,1772687446731,-2152.0452,0.00045939,2]
[407696358,1772687446740,-499.0,0.00045978,2]
[407696359,1772687446749,-198.0,0.00045978,2]
[407696360,1772687446759,-2944.3934,0.00046076,2]
[407696361,1772687446769,-469.0,0.00046085,2]
[407696362,1772687446779,-168.0,0.00046085,2]
[407696363,1772687446789,-532.7867713,0.00046207,2]
[407696364,1772687446799,-2944.3934,0.0004624,2]
[407696365,1772687446808,-2152.0452,0.00046263,2]
[407696366,1772687446819,-532.74,0.00046285,30]
[407696367,1772687446828,-311.0,0.000463,30]
[407696368,1772687446837,-201.0,0.000463,30]
[407696369,1772687446847,-304.0,0.000463,30]
[407696370,1772687446857,-995.0,0.000463,30]
[407696371,1772687446866,-1000.0,0.00046306,2]
[407696372,1772687446875,-160.0,0.00046345,16]
[407696373,1772687446885,-200.0,0.000464,7]
[407696374,1772687446895,-1604.8443912,0.000464,23]
[407696375,1772687446904,-5000.0,0.000464,120]
[407696376,1772687446913,-200.0,0.000464,7]
[407696377,1772687446922,-2944.3934,0.00046403,2]
[407696378,1772687446931,-300.0,0.00046405,30]
[407696379,1772687446941,-500.0,0.00046405,120]
[407696380,1772687446950,-507.33791597,0.00046405,120]
[407696381,1772687446959,-255.94966854,0.00046405,30]
[407696382,1772687446967,-67422.84143376,0.00046406,2]
[407696383,1772687447151,-1298.97054013,0.00046406,2]
[407696384,1772687535715,833.34,0.00014999,2]
[407696385,1772687536375,500.0,0.00014999,2]
[407696386,1772687540824,284.02510473,0.00014999,2]
[407696387,1772687544605,611.35650113,0.00015,2]
[407696388,1772687544907,500.0,0.00015,2]
[407696389,1772687544990,230.6582544,0.00015,2]
[407696390,1772687547002,502.18701332,0.00015,2]
[407696391,1772687548407,443.27005909,0.00015,2]
[407696392,1772687548530,500.0,0.00015,2]
[407696393,1772687583250,150.08885952,0.00019178,2]
[407696394,1772687708636,5445.08420781,0.0002,2]
[407696395,1772687766046,500.0,0.00016973,2]
[407696396,1772687781502,5000.01,0.0001699,2]
[407696397,1772687781525,4999.99,0.0001699,2]
[407696398,1772687811040,0.02,0.0001679,2]
[407696399,1772687811064,257.01,0.0001679,2]